[Event "Titled Tuesday Blitz June 1 2021"]
[White "Thejkumar, M. S."]
[Black "Willow, Jonah B"]
[WhiteFideId "5009154"]
[BlackFideId "438804"]
[WhiteElo "2312"]
[BlackElo "2261"]
[Result "0-1"]
[Round "04"]
[TimeControl "180+1"]
[Date "2021.06.01"]
[WhiteClock "0:00:21"]
[BlackClock "0:00:08"]

1. d4 {[%clk 0:03:00]}  Nf6 {[%clk 0:02:59]} 2. c4 {[%clk 0:03:00]}  e6 {[%clk 0:02:59]} 3. Nf3 {[%clk 0:03:00]}  c5 {[%clk 0:02:59]} 4. d5 {[%clk 0:02:59]}  exd5 {[%clk 0:03:00]} 5. cxd5 {[%clk 0:02:59]}  d6 {[%clk 0:03:01]} 6. Nc3 {[%clk 0:02:59]}  g6 {[%clk 0:03:02]} 7. Nd2 {[%clk 0:02:58]}  Bg7 {[%clk 0:03:00]} 8. e4 {[%clk 0:02:58]}  O-O {[%clk 0:02:59]} 9. Be2 {[%clk 0:02:59]}  Re8 {[%clk 0:02:55]} 10. O-O {[%clk 0:02:58]}  a6 {[%clk 0:02:56]} 11. a4 {[%clk 0:02:57]}  Nbd7 {[%clk 0:02:56]} 12. Ra3 {[%clk 0:02:56]}  Ne5 {[%clk 0:02:39]} 13. a5 {[%clk 0:02:53]}  g5 {[%clk 0:02:32]} 14. Re1 {[%clk 0:02:52]}  h6 {[%clk 0:02:24]} 15. Nf1 {[%clk 0:02:51]}  Ng6 {[%clk 0:02:23]} 16. Ng3 {[%clk 0:02:48]}  Rb8 {[%clk 0:02:20]} 17. Bf1 {[%clk 0:02:38]}  b5 {[%clk 0:02:19]} 18. axb6 {[%clk 0:02:37]}  Rxb6 {[%clk 0:02:20]} 19. Qc2 {[%clk 0:02:32]}  Qc7 {[%clk 0:02:08]} 20. Bd2 {[%clk 0:02:29]}  Ng4 {[%clk 0:01:50]} 21. Nd1 {[%clk 0:02:19]}  Bd7 {[%clk 0:01:40]} 22. Ba5 {[%clk 0:02:15]}  Reb8 {[%clk 0:01:30]} 23. Bxb6 {[%clk 0:02:14]}  Qxb6 {[%clk 0:01:31]} 24. Rxa6 {[%clk 0:02:12]}  Qb4 {[%clk 0:01:30]} 25. Nc3 {[%clk 0:01:41]}  Bd4 {[%clk 0:01:26]} 26. Nh1 {[%clk 0:01:32]}  N6e5 {[%clk 0:00:23]} 27. h3 {[%clk 0:01:27]}  Nf6 {[%clk 0:00:23]} 28. Rxd6 {[%clk 0:01:23]}  Nh5 {[%clk 0:00:13]} 29. Rxh6 {[%clk 0:01:00]}  Nf4 {[%clk 0:00:14]} 30. Rd1 {[%clk 0:00:53]}  Qxb2 {[%clk 0:00:07]} 31. Qxb2 {[%clk 0:00:51]}  Rxb2 {[%clk 0:00:08]} 32. Nb1 {[%clk 0:00:32]}  Ba4 {[%clk 0:00:08]} 33. Rc1 {[%clk 0:00:25]}  Kg7 {[%clk 0:00:09]} 34. Ra6 {[%clk 0:00:22]}  Bd7 {[%clk 0:00:08]} 35. Ra7 {[%clk 0:00:22]}  Bxh3 {[%clk 0:00:08]} 36. gxh3 {[%clk 0:00:21]}  Nf3# {[%clk 0:00:08]} 0-1


[Site "https://www.chess.com"]

[Event "Titled Tuesday Blitz June 1 2021"]
[White "ValeriyGrinev"]
[Black "Langner, Ladislav"]
[BlackFideId "300403"]
[WhiteElo "2624"]
[BlackElo "2346"]
[Result "0-1"]
[Round "04"]
[TimeControl "180+1"]
[Date "2021.06.01"]
[WhiteClock "0:02:23"]
[BlackClock "0:02:14"]

1. d4 {[%clk 0:03:00]}  Nf6 {[%clk 0:02:59]} 2. c4 {[%clk 0:03:01]}  g6 {[%clk 0:02:59]} 3. Nc3 {[%clk 0:03:01]}  d5 {[%clk 0:03:00]} 4. cxd5 {[%clk 0:03:01]}  Nxd5 {[%clk 0:03:01]} 5. e4 {[%clk 0:03:01]}  Nxc3 {[%clk 0:03:01]} 6. bxc3 {[%clk 0:03:02]}  c5 {[%clk 0:03:02]} 7. Be3 {[%clk 0:03:01]}  Bg7 {[%clk 0:03:02]} 8. Qd2 {[%clk 0:03:00]}  Qa5 {[%clk 0:02:53]} 9. Nf3 {[%clk 0:02:58]}  Bg4 {[%clk 0:02:52]} 10. Be2 {[%clk 0:02:48]}  Nc6 {[%clk 0:02:48]} 11. Rc1 {[%clk 0:02:48]}  Bxf3 {[%clk 0:02:40]} 12. Bxf3 {[%clk 0:02:29]}  cxd4 {[%clk 0:02:40]} 13. cxd4 {[%clk 0:02:29]}  Qxd2+ {[%clk 0:02:39]} 14. Kxd2 {[%clk 0:02:28]}  Nxd4 {[%clk 0:02:23]} 15. Rc7 {[%clk 0:02:24]}  Nxf3+ {[%clk 0:02:14]} 16. gxf3 {[%clk 0:02:25]}  Be5 {[%clk 0:02:14]} 17. Rxb7 {[%clk 0:02:23]}  O-O-O {[%clk 0:02:14]} 0-1


[Site "https://www.chess.com"]

[Event "Titled Tuesday Blitz June 1 2021"]
[White "Vazquez, Guillermo"]
[Black "Manafov, Vugar"]
[WhiteFideId "3702308"]
[BlackFideId "13410814"]
[WhiteElo "2536"]
[BlackElo "2274"]
[Result "1/2-1/2"]
[Round "04"]
[TimeControl "180+1"]
[Date "2021.06.01"]
[WhiteClock "0:00:06"]
[BlackClock "0:00:10"]

1. e4 {[%clk 0:03:00]}  Nf6 {[%clk 0:03:00]} 2. e5 {[%clk 0:03:00]}  Nd5 {[%clk 0:03:00]} 3. d4 {[%clk 0:03:00]}  d6 {[%clk 0:03:00]} 4. Nf3 {[%clk 0:03:01]}  Nb6 {[%clk 0:03:01]} 5. a4 {[%clk 0:03:00]}  a5 {[%clk 0:03:01]} 6. Nc3 {[%clk 0:02:59]}  g6 {[%clk 0:03:01]} 7. h4 {[%clk 0:02:59]}  h5 {[%clk 0:02:59]} 8. exd6 {[%clk 0:02:40]}  cxd6 {[%clk 0:02:59]} 9. d5 {[%clk 0:02:39]}  Bg7 {[%clk 0:02:58]} 10. Be3 {[%clk 0:02:39]}  O-O {[%clk 0:02:52]} 11. Bd4 {[%clk 0:02:32]}  Na6 {[%clk 0:02:50]} 12. Bxg7 {[%clk 0:02:09]}  Kxg7 {[%clk 0:02:51]} 13. Ng5 {[%clk 0:02:04]}  Nb4 {[%clk 0:02:44]} 14. Bd3 {[%clk 0:01:53]}  Nxd3+ {[%clk 0:02:26]} 15. Qxd3 {[%clk 0:01:54]}  Bf5 {[%clk 0:02:26]} 16. Qd4+ {[%clk 0:01:53]}  Kg8 {[%clk 0:02:22]} 17. O-O {[%clk 0:01:31]}  Rc8 {[%clk 0:02:20]} 18. Rfe1 {[%clk 0:01:29]}  Rc4 {[%clk 0:02:19]} 19. Qe3 {[%clk 0:01:29]}  Rxh4 {[%clk 0:02:04]} 20. Qxe7 {[%clk 0:01:22]}  Bxc2 {[%clk 0:02:04]} 21. Nf3 {[%clk 0:01:07]}  Qxe7 {[%clk 0:01:36]} 22. Rxe7 {[%clk 0:01:08]}  Rg4 {[%clk 0:01:36]} 23. Rxb7 {[%clk 0:01:07]}  Nxa4 {[%clk 0:01:36]} 24. Ne1 {[%clk 0:00:55]}  Nxc3 {[%clk 0:01:30]} 25. bxc3 {[%clk 0:00:52]}  Ba4 {[%clk 0:01:21]} 26. Rb6 {[%clk 0:00:40]}  Rd8 {[%clk 0:01:13]} 27. Nf3 {[%clk 0:00:40]}  Be8 {[%clk 0:00:58]} 28. Rxa5 {[%clk 0:00:38]}  Rc4 {[%clk 0:00:59]} 29. Rb3 {[%clk 0:00:32]}  Rdc8 {[%clk 0:00:56]} 30. Ra6 {[%clk 0:00:32]}  Rxc3 {[%clk 0:00:56]} 31. Rxc3 {[%clk 0:00:33]}  Rxc3 {[%clk 0:00:57]} 32. Rxd6 {[%clk 0:00:33]}  Rc1+ {[%clk 0:00:57]} 33. Kh2 {[%clk 0:00:33]}  Ba4 {[%clk 0:00:51]} 34. Ra6 {[%clk 0:00:32]}  Bb3 {[%clk 0:00:50]} 35. d6 {[%clk 0:00:26]}  Rd1 {[%clk 0:00:50]} 36. Rb6 {[%clk 0:00:25]}  Bc4 {[%clk 0:00:47]} 37. Ne5 {[%clk 0:00:24]}  Be6 {[%clk 0:00:47]} 38. f3 {[%clk 0:00:24]}  Kg7 {[%clk 0:00:47]} 39. Kg3 {[%clk 0:00:24]}  Kf6 {[%clk 0:00:47]} 40. f4 {[%clk 0:00:20]}  Rd4 {[%clk 0:00:46]} 41. d7 {[%clk 0:00:19]}  Kg7 {[%clk 0:00:46]} 42. Rb4 {[%clk 0:00:14]}  Rd2 {[%clk 0:00:40]} 43. Rb7 {[%clk 0:00:13]}  Kf6 {[%clk 0:00:32]} 44. Kh4 {[%clk 0:00:10]}  g5+ {[%clk 0:00:29]} 45. Kg3 {[%clk 0:00:08]}  h4+ {[%clk 0:00:28]} 46. Kf3 {[%clk 0:00:09]}  Kf5 {[%clk 0:00:15]} 47. Rb5 {[%clk 0:00:06]}  Kf6 {[%clk 0:00:12]} 48. fxg5+ {[%clk 0:00:06]}  Kg7 {[%clk 0:00:10]} 49. Ke3 {[%clk 0:00:05]}  Rd6 {[%clk 0:00:09]} 50. Rb7 {[%clk 0:00:05]}  Bd5 {[%clk 0:00:09]} 51. Rc7 {[%clk 0:00:04]}  Bxg2 {[%clk 0:00:07]} 52. Rc8 {[%clk 0:00:04]}  h3 {[%clk 0:00:05]} 53. d8=Q {[%clk 0:00:01]}  Rxd8 {[%clk 0:00:05]} 54. Rxd8 {[%clk 0:00:02]}  h2 {[%clk 0:00:06]} 55. Rd1 {[%clk 0:00:03]}  h1=Q {[%clk 0:00:07]} 56. Rxh1 {[%clk 0:00:03]}  Bxh1 {[%clk 0:00:07]} 57. Kf4 {[%clk 0:00:04]}  Bb7 {[%clk 0:00:07]} 58. Ng4 {[%clk 0:00:04]}  Bc8 {[%clk 0:00:07]} 59. Ne5 {[%clk 0:00:05]}  Be6 {[%clk 0:00:08]} 60. Nxf7 {[%clk 0:00:06]}  Bxf7 {[%clk 0:00:09]} 61. g6 {[%clk 0:00:06]}  Bxg6 {[%clk 0:00:10]} 1/2-1/2


[Site "https://www.chess.com"]

[Event "Titled Tuesday Blitz June 1 2021"]
[White "Willychess95"]
[Black "Kuzubov, Yuriy"]
[BlackFideId "14112906"]
[WhiteElo "2643"]
[BlackElo "2577"]
[Result "1-0"]
[Round "04"]
[TimeControl "180+1"]
[Date "2021.06.01"]
[WhiteClock "0:01:01"]
[BlackClock "0:00:24"]

1. e4 {[%clk 0:03:00]}  c5 {[%clk 0:02:59]} 2. Nf3 {[%clk 0:02:59]}  Nc6 {[%clk 0:02:59]} 3. d4 {[%clk 0:02:58]}  cxd4 {[%clk 0:03:00]} 4. Nxd4 {[%clk 0:02:59]}  Nf6 {[%clk 0:03:01]} 5. Nc3 {[%clk 0:02:58]}  e5 {[%clk 0:03:01]} 6. Ndb5 {[%clk 0:02:58]}  d6 {[%clk 0:03:02]} 7. Bg5 {[%clk 0:02:57]}  a6 {[%clk 0:03:02]} 8. Na3 {[%clk 0:02:57]}  b5 {[%clk 0:03:01]} 9. Nd5 {[%clk 0:02:56]}  Be7 {[%clk 0:03:02]} 10. Bxf6 {[%clk 0:02:55]}  Bxf6 {[%clk 0:03:02]} 11. c4 {[%clk 0:02:56]}  b4 {[%clk 0:03:01]} 12. Nc2 {[%clk 0:02:56]}  O-O {[%clk 0:03:02]} 13. g3 {[%clk 0:02:57]}  Rb8 {[%clk 0:02:59]} 14. b3 {[%clk 0:02:54]}  Bg5 {[%clk 0:02:53]} 15. Bg2 {[%clk 0:02:52]}  a5 {[%clk 0:02:48]} 16. O-O {[%clk 0:02:51]}  Ne7 {[%clk 0:02:48]} 17. Nde3 {[%clk 0:02:41]}  Be6 {[%clk 0:02:43]} 18. Qd3 {[%clk 0:02:39]}  Qc7 {[%clk 0:02:33]} 19. Rad1 {[%clk 0:02:36]}  Rfd8 {[%clk 0:02:33]} 20. f4 {[%clk 0:02:33]}  exf4 {[%clk 0:02:24]} 21. gxf4 {[%clk 0:02:34]}  Bf6 {[%clk 0:02:20]} 22. Kh1 {[%clk 0:02:28]}  Qc5 {[%clk 0:01:58]} 23. e5 {[%clk 0:02:03]}  Bh4 {[%clk 0:01:56]} 24. f5 {[%clk 0:01:44]}  Bc8 {[%clk 0:01:33]} 25. exd6 {[%clk 0:01:25]}  Nc6 {[%clk 0:00:32]} 26. Qe4 {[%clk 0:01:19]}  Bb7 {[%clk 0:00:23]} 27. Qxh4 {[%clk 0:01:16]}  Rxd6 {[%clk 0:00:24]} 28. Rxd6 {[%clk 0:01:06]}  Qxd6 {[%clk 0:00:24]} 29. f6 {[%clk 0:01:01]} 1-0


[Site "https://www.chess.com"]

[Event "Titled Tuesday Blitz June 1 2021"]
[White "Yeletsky, Ivan"]
[Black "Xiong, Jeffery"]
[WhiteFideId "24180327"]
[BlackFideId "2047640"]
[WhiteElo "2344"]
[BlackElo "2724"]
[Result "1-0"]
[Round "04"]
[TimeControl "180+1"]
[Date "2021.06.01"]
[WhiteClock "0:01:12"]
[BlackClock "0:02:16"]

1. d4 {[%clk 0:02:59]}  Nf6 {[%clk 0:02:59]} 2. c4 {[%clk 0:02:59]}  c5 {[%clk 0:02:59]} 3. d5 {[%clk 0:02:59]}  b5 {[%clk 0:03:00]} 4. cxb5 {[%clk 0:02:53]}  a6 {[%clk 0:03:00]} 5. bxa6 {[%clk 0:02:54]}  g6 {[%clk 0:03:00]} 6. Nc3 {[%clk 0:02:53]}  Bxa6 {[%clk 0:03:01]} 7. Nf3 {[%clk 0:02:53]}  Bg7 {[%clk 0:03:01]} 8. e4 {[%clk 0:02:53]}  Bxf1 {[%clk 0:03:01]} 9. Kxf1 {[%clk 0:02:54]}  d6 {[%clk 0:03:02]} 10. g3 {[%clk 0:02:54]}  Nbd7 {[%clk 0:03:02]} 11. Kg2 {[%clk 0:02:55]}  O-O {[%clk 0:03:03]} 12. a4 {[%clk 0:02:55]}  Qb6 {[%clk 0:03:03]} 13. Qe2 {[%clk 0:02:53]}  Rfb8 {[%clk 0:03:03]} 14. Nb5 {[%clk 0:02:52]}  Ne8 {[%clk 0:03:01]} 15. Bg5 {[%clk 0:02:52]}  Kf8 {[%clk 0:03:01]} 16. Nd2 {[%clk 0:02:52]}  Nc7 {[%clk 0:02:55]} 17. Nc4 {[%clk 0:02:52]}  Qb7 {[%clk 0:02:56]} 18. Nxc7 {[%clk 0:02:17]}  Qxc7 {[%clk 0:02:57]} 19. Bd2 {[%clk 0:02:13]}  Rb3 {[%clk 0:02:45]} 20. Ra2 {[%clk 0:01:56]}  Rab8 {[%clk 0:02:36]} 21. Rb1 {[%clk 0:01:43]}  Kg8 {[%clk 0:02:35]} 22. Na5 {[%clk 0:01:32]}  Rxb2 {[%clk 0:02:33]} 23. Raxb2 {[%clk 0:01:33]}  Rxb2 {[%clk 0:02:33]} 24. Rxb2 {[%clk 0:01:33]}  Bxb2 {[%clk 0:02:34]} 25. Nc6 {[%clk 0:01:32]}  Ne5 {[%clk 0:02:30]} 26. Qb5 {[%clk 0:01:19]}  Bd4 {[%clk 0:02:16]} 27. Ba5 {[%clk 0:01:12]} 1-0


[Site "https://www.chess.com"]

[Event "Titled Tuesday Blitz June 1 2021"]
[White "Zierk, Steven"]
[Black "Nygren, Kim"]
[WhiteFideId "2034255"]
[BlackFideId "1706136"]
[WhiteElo "2502"]
[BlackElo "2257"]
[Result "1-0"]
[Round "04"]
[TimeControl "180+1"]
[Date "2021.06.01"]
[WhiteClock "0:00:10"]
[BlackClock "0:00:03"]

1. e4 {[%clk 0:03:00]}  c5 {[%clk 0:02:58]} 2. Nf3 {[%clk 0:03:01]}  d6 {[%clk 0:02:57]} 3. d4 {[%clk 0:03:01]}  cxd4 {[%clk 0:02:58]} 4. Nxd4 {[%clk 0:03:02]}  Nf6 {[%clk 0:02:57]} 5. f3 {[%clk 0:03:02]}  e6 {[%clk 0:02:56]} 6. c4 {[%clk 0:03:02]}  Be7 {[%clk 0:02:56]} 7. Nc3 {[%clk 0:03:03]}  O-O {[%clk 0:02:56]} 8. Be2 {[%clk 0:03:03]}  Nc6 {[%clk 0:02:56]} 9. O-O {[%clk 0:03:03]}  a6 {[%clk 0:02:56]} 10. Kh1 {[%clk 0:02:57]}  Bd7 {[%clk 0:02:55]} 11. Nc2 {[%clk 0:02:54]}  Rc8 {[%clk 0:02:53]} 12. b3 {[%clk 0:02:53]}  Ne5 {[%clk 0:02:48]} 13. Bb2 {[%clk 0:02:50]}  b5 {[%clk 0:02:46]} 14. cxb5 {[%clk 0:02:48]}  axb5 {[%clk 0:02:46]} 15. Nxb5 {[%clk 0:02:46]}  Bxb5 {[%clk 0:02:43]} 16. Bxb5 {[%clk 0:02:47]}  Qb6 {[%clk 0:02:40]} 17. a4 {[%clk 0:02:44]}  Rfd8 {[%clk 0:02:36]} 18. Bd4 {[%clk 0:02:40]}  Qb8 {[%clk 0:02:34]} 19. Nb4 {[%clk 0:02:15]}  Ng6 {[%clk 0:01:58]} 20. Nc6 {[%clk 0:02:11]}  Rxc6 {[%clk 0:01:58]} 21. Bxc6 {[%clk 0:02:12]}  d5 {[%clk 0:01:53]} 22. e5 {[%clk 0:01:04]}  Nxe5 {[%clk 0:01:50]} 23. Bb5 {[%clk 0:01:05]}  Bd6 {[%clk 0:01:47]} 24. f4 {[%clk 0:01:01]}  Ng6 {[%clk 0:01:42]} 25. g3 {[%clk 0:00:59]}  Ne4 {[%clk 0:01:38]} 26. Qd3 {[%clk 0:00:53]}  e5 {[%clk 0:01:30]} 27. fxe5 {[%clk 0:00:50]}  Bxe5 {[%clk 0:01:30]} 28. Bxe5 {[%clk 0:00:48]}  Nxe5 {[%clk 0:01:31]} 29. Qd4 {[%clk 0:00:43]}  Ng4 {[%clk 0:01:31]} 30. Rf4 {[%clk 0:00:39]}  h5 {[%clk 0:00:44]} 31. b4 {[%clk 0:00:33]}  g6 {[%clk 0:00:42]} 32. Be2 {[%clk 0:00:26]}  g5 {[%clk 0:00:34]} 33. Rf3 {[%clk 0:00:22]}  Qd6 {[%clk 0:00:19]} 34. a5 {[%clk 0:00:18]}  Ne5 {[%clk 0:00:15]} 35. Rb3 {[%clk 0:00:18]}  h4 {[%clk 0:00:13]} 36. gxh4 {[%clk 0:00:17]}  g4 {[%clk 0:00:13]} 37. a6 {[%clk 0:00:16]}  g3 {[%clk 0:00:10]} 38. a7 {[%clk 0:00:14]}  Ra8 {[%clk 0:00:06]} 39. hxg3 {[%clk 0:00:13]}  Qe6 {[%clk 0:00:06]} 40. Kg2 {[%clk 0:00:12]}  f6 {[%clk 0:00:03]} 41. b5 {[%clk 0:00:11]}  Qf5 {[%clk 0:00:03]} 42. b6 {[%clk 0:00:10]} 1-0


[Site "https://www.chess.com"]

[Event "Titled Tuesday Blitz June 1 2021"]
[White "elcandado"]
[Black "Leisch, Lukas"]
[BlackFideId "1632094"]
[WhiteElo "2664"]
[BlackElo "2210"]
[Result "0-1"]
[Round "04"]
[TimeControl "180+1"]
[Date "2021.06.01"]
[WhiteClock "0:00:20"]
[BlackClock "0:00:37"]

1. d4 {[%clk 0:03:00]}  d5 {[%clk 0:03:00]} 2. Bf4 {[%clk 0:03:00]}  c5 {[%clk 0:03:00]} 3. c3 {[%clk 0:02:59]}  cxd4 {[%clk 0:02:56]} 4. cxd4 {[%clk 0:02:58]}  Nc6 {[%clk 0:02:56]} 5. e3 {[%clk 0:02:58]}  Nf6 {[%clk 0:02:56]} 6. Nc3 {[%clk 0:02:58]}  a6 {[%clk 0:02:55]} 7. Rc1 {[%clk 0:02:57]}  Bf5 {[%clk 0:02:55]} 8. Bd3 {[%clk 0:02:56]}  Bxd3 {[%clk 0:02:54]} 9. Qxd3 {[%clk 0:02:57]}  e6 {[%clk 0:02:54]} 10. Nf3 {[%clk 0:02:56]}  Be7 {[%clk 0:02:54]} 11. O-O {[%clk 0:02:54]}  O-O {[%clk 0:02:54]} 12. a3 {[%clk 0:02:50]}  Rc8 {[%clk 0:02:52]} 13. Na4 {[%clk 0:02:48]}  Na5 {[%clk 0:02:42]} 14. Nd2 {[%clk 0:02:42]}  Nc4 {[%clk 0:02:23]} 15. Rc2 {[%clk 0:01:57]}  Qa5 {[%clk 0:01:57]} 16. Nc3 {[%clk 0:01:29]}  Nxb2 {[%clk 0:01:57]} 17. Rxb2 {[%clk 0:01:18]}  Rxc3 {[%clk 0:01:57]} 18. Qe2 {[%clk 0:01:15]}  b5 {[%clk 0:01:57]} 19. Nb1 {[%clk 0:01:12]}  Rc6 {[%clk 0:01:51]} 20. Rc2 {[%clk 0:00:58]}  Rfc8 {[%clk 0:01:49]} 21. Rxc6 {[%clk 0:00:49]}  Rxc6 {[%clk 0:01:50]} 22. Qb2 {[%clk 0:00:49]}  h6 {[%clk 0:01:40]} 23. h3 {[%clk 0:00:49]}  Ne4 {[%clk 0:01:37]} 24. Rc1 {[%clk 0:00:47]}  Rc4 {[%clk 0:01:32]} 25. f3 {[%clk 0:00:44]}  Nd6 {[%clk 0:01:25]} 26. Bxd6 {[%clk 0:00:40]}  Bxd6 {[%clk 0:01:25]} 27. e4 {[%clk 0:00:40]}  Qc7 {[%clk 0:01:20]} 28. Re1 {[%clk 0:00:30]}  Rc2 {[%clk 0:01:17]} 29. Qb3 {[%clk 0:00:30]}  Bg3 {[%clk 0:00:47]} 30. Rf1 {[%clk 0:00:22]}  Qc4 {[%clk 0:00:47]} 31. Qe3 {[%clk 0:00:20]}  Qa2 {[%clk 0:00:37]} 0-1


[Site "https://www.chess.com"]

[Event "Titled Tuesday Blitz June 1 2021"]
[White "Abdusattorov, Nodirbek"]
[Black "Yeletsky, Ivan"]
[WhiteFideId "14204118"]
[BlackFideId "24180327"]
[WhiteElo "2662"]
[BlackElo "2344"]
[Result "1-0"]
[Round "05"]
[TimeControl "180+1"]
[Date "2021.06.01"]
[WhiteClock "0:00:52"]
[BlackClock "0:00:01"]

1. e4 {[%clk 0:03:00]}  c5 {[%clk 0:02:59]} 2. c3 {[%clk 0:03:00]}  Nf6 {[%clk 0:02:59]} 3. e5 {[%clk 0:03:00]}  Nd5 {[%clk 0:02:59]} 4. Nf3 {[%clk 0:03:01]}  d6 {[%clk 0:02:58]} 5. d4 {[%clk 0:02:56]}  cxd4 {[%clk 0:02:58]} 6. cxd4 {[%clk 0:02:57]}  Nc6 {[%clk 0:02:57]} 7. Bc4 {[%clk 0:02:57]}  dxe5 {[%clk 0:02:53]} 8. dxe5 {[%clk 0:02:57]}  Ndb4 {[%clk 0:02:52]} 9. O-O {[%clk 0:02:57]}  Qxd1 {[%clk 0:02:38]} 10. Rxd1 {[%clk 0:02:58]}  Bg4 {[%clk 0:02:38]} 11. e6 {[%clk 0:02:41]}  fxe6 {[%clk 0:02:34]} 12. Nc3 {[%clk 0:02:41]}  g6 {[%clk 0:02:04]} 13. Ne4 {[%clk 0:02:35]}  Bg7 {[%clk 0:01:49]} 14. Neg5 {[%clk 0:02:29]}  Nc2 {[%clk 0:01:46]} 15. Rb1 {[%clk 0:02:27]}  N2d4 {[%clk 0:01:46]} 16. Be3 {[%clk 0:02:23]}  Rd8 {[%clk 0:01:27]} 17. h3 {[%clk 0:01:57]}  Bxf3 {[%clk 0:01:26]} 18. gxf3 {[%clk 0:01:57]}  Bf6 {[%clk 0:00:56]} 19. Nxe6 {[%clk 0:01:55]}  Rd6 {[%clk 0:00:53]} 20. Nc7+ {[%clk 0:01:46]}  Kd7 {[%clk 0:00:53]} 21. Nb5 {[%clk 0:01:41]}  Nxb5 {[%clk 0:00:46]} 22. Bxb5 {[%clk 0:01:42]}  a6 {[%clk 0:00:46]} 23. Bd3 {[%clk 0:01:31]}  Rd8 {[%clk 0:00:41]} 24. Bb6 {[%clk 0:01:28]}  Nd4 {[%clk 0:00:05]} 25. Bxd8 {[%clk 0:01:25]}  Kxd8 {[%clk 0:00:06]} 26. Be4 {[%clk 0:01:24]}  b5 {[%clk 0:00:06]} 27. Kf1 {[%clk 0:01:22]}  e5 {[%clk 0:00:02]} 28. Rbc1 {[%clk 0:01:21]}  Bg5 {[%clk 0:00:02]} 29. Rc5 {[%clk 0:01:19]}  Bf4 {[%clk 0:00:02]} 30. Rd3 {[%clk 0:01:16]}  b4 {[%clk 0:00:02]} 31. a3 {[%clk 0:01:02]}  bxa3 {[%clk 0:00:01]} 32. Rxa3 {[%clk 0:01:01]}  Rb6 {[%clk 0:00:02]} 33. Ra2 {[%clk 0:00:59]}  Ke7 {[%clk 0:00:02]} 34. Rc7+ {[%clk 0:00:58]}  Kf6 {[%clk 0:00:03]} 35. Ra7 {[%clk 0:00:56]}  Kg5 {[%clk 0:00:01]} 36. Rxh7 {[%clk 0:00:53]}  Rb8 {[%clk 0:00:01]} 37. Rxa6 {[%clk 0:00:52]} 1-0


[Site "https://www.chess.com"]

[Event "Titled Tuesday Blitz June 1 2021"]
[White "Donchenko, Alexander"]
[Black "Perez Ponsa, Federico"]
[WhiteFideId "24603295"]
[BlackFideId "117927"]
[WhiteElo "2553"]
[BlackElo "2672"]
[Result "1-0"]
[Round "05"]
[TimeControl "180+1"]
[Date "2021.06.01"]
[WhiteClock "0:01:26"]
[BlackClock "0:01:09"]

1. e4 {[%clk 0:03:00]}  c5 {[%clk 0:02:56]} 2. Nf3 {[%clk 0:03:00]}  d6 {[%clk 0:02:55]} 3. Bb5+ {[%clk 0:03:00]}  Nd7 {[%clk 0:02:54]} 4. O-O {[%clk 0:03:00]}  a6 {[%clk 0:02:52]} 5. Bd3 {[%clk 0:02:59]}  Ngf6 {[%clk 0:02:48]} 6. c3 {[%clk 0:02:59]}  b5 {[%clk 0:02:26]} 7. a4 {[%clk 0:02:54]}  c4 {[%clk 0:02:24]} 8. Bc2 {[%clk 0:02:49]}  Bb7 {[%clk 0:02:23]} 9. Re1 {[%clk 0:02:41]}  g6 {[%clk 0:02:13]} 10. axb5 {[%clk 0:02:35]}  axb5 {[%clk 0:02:11]} 11. Rxa8 {[%clk 0:02:36]}  Qxa8 {[%clk 0:02:08]} 12. Na3 {[%clk 0:02:37]}  Bg7 {[%clk 0:01:59]} 13. Nxb5 {[%clk 0:02:36]}  O-O {[%clk 0:01:59]} 14. Qe2 {[%clk 0:02:36]}  Rc8 {[%clk 0:01:58]} 15. Na3 {[%clk 0:02:26]}  Ba6 {[%clk 0:01:52]} 16. h3 {[%clk 0:02:20]}  Nh5 {[%clk 0:01:45]} 17. d4 {[%clk 0:02:15]}  cxd3 {[%clk 0:01:41]} 18. Bxd3 {[%clk 0:02:15]}  Bxd3 {[%clk 0:01:41]} 19. Qxd3 {[%clk 0:02:16]}  Nc5 {[%clk 0:01:42]} 20. Qe2 {[%clk 0:02:10]}  Nb3 {[%clk 0:01:39]} 21. Bg5 {[%clk 0:02:07]}  Nf6 {[%clk 0:01:32]} 22. e5 {[%clk 0:02:04]}  dxe5 {[%clk 0:01:31]} 23. Nxe5 {[%clk 0:02:04]}  Qd5 {[%clk 0:01:27]} 24. Nac4 {[%clk 0:01:46]}  h6 {[%clk 0:01:25]} 25. Nb6 {[%clk 0:01:44]}  Qe6 {[%clk 0:01:21]} 26. Nxc8 {[%clk 0:01:36]}  hxg5 {[%clk 0:01:21]} 27. Qc4 {[%clk 0:01:36]}  Qxc4 {[%clk 0:01:14]} 28. Nxe7+ {[%clk 0:01:34]}  Kf8 {[%clk 0:01:14]} 29. Nxc4 {[%clk 0:01:35]}  Nd7 {[%clk 0:01:11]} 30. Nd5 {[%clk 0:01:31]}  Ndc5 {[%clk 0:01:12]} 31. Nd6 {[%clk 0:01:29]}  Bh6 {[%clk 0:01:09]} 32. Re8+ {[%clk 0:01:26]}  Kg7 {[%clk 0:01:09]} 33. Re7 {[%clk 0:01:26]} 1-0


[Site "https://www.chess.com"]